bitfinex/quotes_ETHUSD_20240630
["timestamp","ask_amount","ask_price","bid_price","bid_amount"]
[1719764649389,0.35443954,3399.6,3399.3,0.116]
[1719764650742,0.35443954,3399.6,3399.3,0.086]
[1719764652914,0.35443954,3399.6,3399.0,0.849]
[1719764653215,2.3412,3399.7,3399.1,0.33358827]
[1719764653380,2.3412,3399.7,3399.1,1.18258827]
[1719764654615,2.3412,3399.7,3399.1,0.33358827]
[1719764654805,2.3412,3399.7,3398.9,0.849]
[1719764655302,2.66022,3399.7,3398.8,2.2686]
[1719764655505,2.66022,3399.7,3398.9,0.849]
[1719764657699,2.72022,3399.7,3398.9,0.849]
[1719764660009,3.56922,3399.7,3398.9,0.849]
[1719764665482,2.4813,3399.6,3398.9,0.849]
[1719764665826,2.4813,3399.6,3399.0,0.33360227]
[1719764667567,0.370932,3399.5,3399.0,0.33360227]
[1719764667784,2.3964,3399.1,3399.0,0.33360227]
[1719764667932,3.2454,3399.1,3399.0,0.33360227]
[1719764668274,3.2454,3399.1,3398.2,3.1337]
[1719764668566,3.2454,3399.1,3399.0,0.32199425]
[1719764668567,2.3964,3399.1,3399.0,0.32199425]
[1719764668765,2.3964,3399.1,3398.2,3.1337]
[1719764669061,2.3964,3399.1,3399.0,0.32199585]
[1719764669232,2.3964,3399.1,3398.2,3.44707]
[1719764669233,2.3964,3399.1,3398.2,3.1337]
[1719764669433,2.3964,3399.1,3399.0,0.32199585]
[1719764669663,2.3964,3399.1,3398.2,3.1337]
[1719764669932,2.3964,3399.1,3399.0,0.32204212]
[1719764670152,2.3964,3399.1,3398.2,3.1337]
[1719764670569,2.3964,3399.1,3398.3,0.32212866]
[1719764676455,0.849,3398.8,3398.3,0.32212866]
[1719764676653,0.849,3398.8,3397.4,3.0]
[1719764676654,2.3964,3398.7,3397.9,0.849]
[1719764676863,2.3964,3398.7,3398.4,0.3221163]
[1719764677242,2.3964,3398.7,3397.6,2.2847]
[1719764677472,2.3964,3398.7,3398.5,0.32210393]
[1719764677633,2.3964,3398.7,3397.6,2.2847]
[1719764677840,2.3964,3398.7,3398.6,0.32209157]
[1719764678064,2.63604,3398.7,3398.1,0.849]
[1719764678241,2.3964,3398.7,3398.6,0.32209157]
[1719764678440,2.3964,3398.7,3398.1,0.849]
[1719764678647,2.3964,3398.7,3398.6,0.32221124]
[1719764678854,2.3964,3398.7,3398.1,0.849]
[1719764679053,2.3964,3398.7,3398.6,0.32221124]
[1719764679262,2.72094,3398.7,3398.1,0.849]
[1719764679568,2.3964,3398.7,3398.6,0.32221124]
[1719764679770,2.3964,3398.7,3398.1,0.849]
[1719764680132,2.3964,3398.7,3398.2,0.32226069]
[1719764680938,2.3376,3398.9,3398.3,0.849]
[1719764681246,2.3376,3398.9,3398.4,0.32227746]
[1719764681981,2.3376,3398.9,3398.3,0.849]
[1719764685378,2.3376,3398.9,3398.1,2.2731]
[1719764685582,2.3376,3398.9,3398.2,0.849]
[1719764685777,2.3376,3398.9,3398.2,1.17130219]
[1719764690354,2.65626,3398.9,3398.2,1.17130219]
[1719764691299,2.65626,3398.9,3398.2,0.32230219]
[1719764691652,2.65626,3398.9,3398.0,0.90785086]
[1719764691891,2.65626,3398.9,3398.3,0.32225792]
[1719764692103,2.65626,3398.9,3398.0,0.90785086]
[1719764692395,2.65626,3398.9,3398.4,0.32224556]
[1719764692554,0.350526,3398.8,3398.0,0.90785086]
[1719764692753,2.3376,3398.9,3398.1,0.32228265]
[1719764693194,0.849,3398.8,3398.1,0.32228265]
[1719764693372,3.3427,3398.7,3398.1,0.32228265]
[1719764693578,0.33427,3398.6,3398.1,0.32228265]
[1719764693796,3.3427,3398.7,3397.7,0.849]
[1719764694290,3.3427,3398.7,3397.8,0.32231976]
[1719764695554,3.3427,3398.7,3397.9,0.849]
[1719764696004,3.3427,3398.7,3398.0,0.32229502]
[1719764696348,2.4937,3398.7,3398.0,0.32229502]
[1719764696547,2.4937,3398.7,3398.0,0.66931452]
[1719764697302,3.3427,3398.7,3398.0,0.66931452]
[1719764700188,2.4937,3398.6,3398.0,0.66931452]
[1719764700356,2.4937,3398.6,3398.0,0.32229502]
[1719764700783,2.4937,3398.6,3397.6,0.849]
[1719764701110,2.4937,3398.6,3397.5,2.2989]
[1719764701111,2.4937,3398.4,3397.5,2.2989]
[1719764701401,2.4937,3398.4,3397.7,0.32233212]
[1719764701702,2.4937,3398.4,3397.8,0.32233889]
[1719764701864,2.4937,3398.4,3397.6,1.1967812]
[1719764702059,2.4937,3398.4,3397.9,0.32232652]
[1719764702259,2.4937,3398.4,3397.7,0.34956812]
[1719764702490,2.4937,3398.4,3398.0,0.32231415]
[1719764702659,2.4937,3398.4,3397.8,0.849]
[1719764702865,2.4937,3398.4,3398.1,0.32230179]
[1719764703082,2.4937,3398.4,3397.9,0.15463493]
[1719764703308,2.4937,3398.4,3398.2,0.32228942]
[1719764703455,2.4937,3398.4,3397.9,0.15463493]
[1719764703655,2.4937,3398.4,3398.3,0.32227705]
[1719764703995,2.4937,3398.4,3397.9,0.15463493]
[1719764704395,2.4937,3398.4,3398.0,0.32231415]
[1719764704755,2.4937,3398.4,3398.0,1.33886587]
[1719764706002,8.169,3399.0,3398.0,1.33886587]
[1719764706230,2.4937,3398.9,3398.0,1.33886587]
[1719764706411,2.4937,3398.9,3398.0,1.01655172]
[1719764706876,2.4937,3398.9,3398.0,0.849]
[1719764708096,0.849,3398.8,3398.0,0.849]
[1719764708301,2.381,3398.7,3397.4,2.3634]
[1719764708502,2.381,3398.5,3398.1,0.32230179]
[1719764708800,2.381,3398.5,3397.7,0.849]
[1719764708986,2.381,3398.5,3398.2,0.32228942]
[1719764709186,2.381,3398.5,3397.7,0.849]
[1719764709579,2.381,3398.5,3397.8,0.32233889]
[1719764710594,2.381,3398.5,3397.7,0.849]
[1719764710797,2.381,3398.5,3397.9,0.32232652]
[1719764711009,2.381,3398.5,3397.8,0.32233889]
[1719764711208,2.381,3398.5,3398.0,0.32231415]
[1719764711385,2.381,3398.5,3397.9,0.32232652]
[1719764711697,2.381,3398.5,3398.1,0.32230179]
[1719764711879,2.381,3398.5,3397.7,1.22524]
[1719764712082,2.381,3398.5,3398.2,0.32228942]
[1719764712297,2.381,3398.5,3397.7,0.849]
[1719764712493,2.381,3398.5,3398.3,0.32227705]
[1719764712694,2.381,3398.5,3397.7,0.849]
[1719764712869,2.381,3398.5,3398.4,0.32226469]
[1719764713202,2.381,3398.5,3397.7,0.849]
[1719764713714,2.381,3398.5,3397.8,0.32233889]
[1719764714599,2.381,3398.5,3397.8,0.49447278]
[1719764714816,2.381,3398.5,3397.8,0.58047278]
[1719764719173,2.381,3398.5,3397.8,0.40833889]
[1719764723093,2.381,3398.5,3397.8,1.25733889]
[1719764734757,0.35247319,3398.4,3397.8,0.40833889]
[1719764734926,2.381,3398.5,3397.8,0.40833889]
[1719764735643,0.3524562,3398.4,3397.8,0.40833889]
[1719764735838,2.2919,3398.3,3397.8,0.40833889]
[1719764740071,0.3525351,3398.2,3397.8,0.40833889]
[1719764740431,2.2919,3398.3,3397.8,0.40833889]
[1719764740633,0.35252934,3398.2,3397.8,0.40833889]
[1719764741030,2.2919,3398.3,3397.8,0.40833889]
[1719764742276,0.31409,3398.2,3397.8,0.40833889]
[1719764742493,2.2919,3398.3,3397.8,0.40833889]
[1719764745500,0.3525465,3398.2,3397.8,0.40833889]
[1719764745791,0.35254694,3398.2,3397.8,0.40833889]
[1719764746583,0.35262001,3398.2,3397.8,0.40833889]
[1719764749037,2.2919,3398.3,3397.8,0.40833889]
[1719764749342,0.31409,3398.2,3397.8,0.40833889]
[1719764749489,0.6667029,3398.2,3397.8,0.40833889]
[1719764751343,2.4689,3398.1,3397.8,0.40833889]
[1719764752762,3.3179,3398.1,3397.8,0.40833889]
[1719764753040,0.35283095,3398.0,3397.8,0.086]
[1719764755050,0.849,3397.9,3397.8,0.086]
[1719764755266,1.86890405,3397.9,3397.8,0.086]
[1719764755403,0.6670731,3397.9,3397.8,0.086]
[1719764755606,1.01990406,3397.9,3397.8,0.086]
[1719764755805,0.6670731,3397.9,3397.8,0.086]
[1719764757750,3.0,3398.2,3397.8,0.086]
[1719764757956,2.4689,3398.3,3397.9,0.32238878]
[1719764758119,0.35268482,3398.2,3397.9,0.32238878]
[1719764758331,3.35268482,3398.2,3397.9,0.32238878]
[1719764758510,3.0,3398.2,3397.8,0.086]
[1719764758706,0.63179,3398.1,3397.9,0.32238878]
[1719764759053,3.0,3398.2,3397.9,0.32238878]
[1719764759238,0.849,3398.2,3397.9,0.32238878]
[1719764759437,3.849,3398.2,3397.9,0.32238878]
[1719764760210,0.849,3398.2,3397.9,0.32238878]
[1719764760416,0.33179,3398.1,3397.9,0.32238878]
[1719764764401,0.33179,3398.1,3397.8,0.086]
[1719764764769,0.33179,3398.1,3397.9,0.32246861]
[1719764765121,0.33179,3398.1,3397.8,0.086]
[1719764765445,0.33179,3398.1,3397.9,0.32246861]
[1719764765942,0.33179,3398.1,3397.8,0.086]
[1719764766176,0.33179,3398.1,3397.9,0.32246861]
[1719764766385,0.33179,3398.1,3397.8,0.086]
[1719764766551,0.33179,3398.1,3397.9,0.32246861]
[1719764766758,0.33179,3398.1,3397.8,0.086]
[1719764766997,0.33179,3398.1,3397.9,0.32246861]
[1719764767472,0.33179,3398.1,3397.8,0.086]
[1719764767685,2.4315,3397.9,3397.8,0.086]
[1719764768644,2.4015,3397.9,3397.8,0.086]
[1719764771408,8.33693473,3398.6,3397.8,0.086]
[1719764771656,0.849,3398.2,3397.8,0.086]
[1719764771814,0.849,3398.2,3397.9,0.32253088]
[1719764772140,0.35258858,3398.1,3397.8,0.086]
[1719764772345,1.27874347,3398.2,3397.8,0.086]
[1719764772510,1.27874347,3398.2,3397.9,0.32253088]
[1719764772926,0.35254754,3398.1,3397.8,0.086]
[1719764773109,0.35254754,3398.1,3397.9,0.32253088]
[1719764773110,0.4062791,3398.1,3397.9,0.32253088]
[1719764773316,0.75890084,3398.1,3397.8,0.086]
[1719764773762,0.75890084,3398.1,3397.9,0.32253088]
[1719764774056,0.75890084,3398.1,3397.8,0.086]
[1719764774249,2.4315,3398.0,3397.8,0.086]
[1719764774454,3.2805,3398.0,3397.9,0.32257398]
[1719764774857,3.2805,3398.0,3397.8,0.086]
[1719764775226,3.2805,3398.0,3397.9,0.32257557]
[1719764775419,0.849,3398.0,3397.9,0.32257557]
[1719764775759,0.849,3398.1,3397.8,0.086]
[1719764775966,2.4315,3398.2,3397.8,0.086]
[1719764776168,0.35257956,3398.1,3397.9,0.32257557]
[1719764776522,0.35257956,3398.1,3397.8,0.086]
[1719764776737,3.2805,3398.2,3397.8,0.086]
[1719764776738,2.4315,3398.2,3397.8,0.086]
[1719764776941,0.849,3398.2,3397.9,0.32257557]
[1719764777218,0.849,3398.2,3397.8,0.086]
[1719764777614,0.849,3398.2,3397.9,0.32257557]
[1719764778032,0.35255126,3398.1,3397.8,0.086]
[1719764778468,3.2805,3398.0,3397.9,0.32257557]
[1719764778671,3.99635639,3398.0,3397.9,0.32257557]
[1719764778880,3.99635639,3398.0,3397.8,0.086]
[1719764779083,2.79480513,3398.0,3397.8,0.086]
[1719764781917,0.3525365,3397.9,3397.8,0.086]
[1719764782823,2.79480513,3398.0,3397.8,0.086]
[1719764782824,0.36330513,3398.0,3397.8,0.086]
[1719764783019,0.849,3398.1,3397.8,0.086]
[1719764783269,0.35252312,3398.0,3397.8,0.086]
[1719764783925,0.849,3398.1,3397.8,0.086]
[1719764784117,0.35248684,3398.0,3397.8,0.086]
[1719764784892,0.849,3398.2,3397.9,0.32259474]
[1719764785168,0.35244111,3398.1,3397.9,0.32259474]
[1719764785364,2.78394111,3398.1,3397.8,0.086]
[1719764785517,0.35244111,3398.0,3397.8,0.086]
[1719764785959,1.20144111,3398.0,3397.9,0.32261707]
[1719764786179,1.47983522,3398.0,3397.9,0.32261707]
[1719764786378,1.47983522,3398.0,3397.8,0.086]
[1719764786670,0.35244111,3397.9,3397.8,0.086]
[1719764787227,1.12739411,3398.0,3397.8,0.086]
[1719764787425,0.35255181,3397.9,3397.8,0.086]
[1719764790461,0.849,3398.0,3397.8,0.086]
[1719764790707,0.35256819,3397.9,3397.8,0.086]
[1719764791064,0.35256492,3397.9,3397.8,0.086]
[1719764793795,0.849,3398.0,3397.8,0.086]
[1719764793974,0.35256383,3397.9,3397.8,0.086]
[1719764797162,0.35258163,3397.9,3397.8,0.086]
[1719764797411,0.71942979,3397.9,3397.8,0.05875661]
[1719764798927,0.71943297,3397.9,3397.8,0.05875661]
[1719764799767,0.71943297,3397.9,3397.3,2.4878]
[1719764799985,0.35258481,3397.9,3397.3,2.4878]
[1719764800377,0.3525812,3397.9,3397.3,2.4878]
[1719764800912,0.35258153,3397.9,3397.3,2.4878]
[1719764803353,0.3526035,3397.9,3397.3,2.4878]
[1719764804705,0.3526035,3397.9,3397.3,2.5478]
[1719764807012,0.35255348,3397.9,3397.3,2.5478]
[1719764810147,0.849,3398.0,3397.3,2.5478]
[1719764810443,0.35263525,3397.9,3397.3,0.06]
[1719764810657,0.849,3398.0,3397.3,0.06]
[1719764810843,0.35266125,3397.9,3397.3,0.06]
[1719764811410,0.849,3397.8,3397.3,0.06]
[1719764811721,0.35266125,3397.7,3397.4,0.32277635]
[1719764812909,0.35267516,3397.7,3397.4,0.32277635]
[1719764813424,1.21585613,3397.8,3397.4,0.32277635]
[1719764813629,0.35270225,3397.7,3397.4,0.32277635]
[1719764816250,0.36685613,3397.8,3397.4,2.70617635]
[1719764816408,0.35270225,3397.8,3397.4,2.70617635]
[1719764816841,0.3526361,3397.8,3397.4,2.70617635]
[1719764817513,0.3526361,3398.0,3397.4,2.70617635]
[1719764817708,0.35260136,3398.0,3397.4,2.70617635]
[1719764817933,0.35260136,3398.0,3397.4,2.3834]
[1719764819912,0.35259072,3398.0,3397.4,2.3834]
[1719764820441,0.35260354,3398.0,3397.4,2.3834]
[1719764821151,0.35260354,3398.0,3397.4,2.38227019]
[1719764822164,0.849,3397.9,3397.4,2.38227019]
[1719764822363,0.92847526,3397.8,3397.4,2.38227019]
[1719764822665,0.35265982,3397.7,3397.5,0.32279591]
[1719764823975,2.3797,3397.7,3397.5,0.32279591]
[1719764824137,1.20160608,3397.6,3397.5,0.32279591]
[1719764824336,1.20160608,3397.6,3397.3,0.06]
[1719764824532,0.849,3397.4,3397.3,0.06]
[1719764824766,1.20160608,3397.4,3397.3,0.06]
[1719764824968,1.20160608,3397.4,3397.3,0.38289094]
[1719764825175,0.35281253,3397.4,3397.3,0.06]
[1719764825558,16.281588,3397.4,3397.3,0.06]
[1719764825749,1.20171226,3397.4,3397.3,0.06]
[1719764826886,0.35271226,3397.4,3397.3,0.06]
[1719764827083,1.20171226,3397.4,3397.3,0.06]
[1719764828684,1.20186734,3397.4,3397.3,0.06]
[1719764829785,0.35286734,3397.4,3397.3,0.06]
[1719764830092,1.20186734,3397.4,3397.3,0.06]
[1719764830688,1.20183329,3397.4,3397.3,0.06]
[1719764831779,20.767653,3397.4,3397.3,0.06]
[1719764831976,5.79372096,3397.4,3397.3,0.06]
[1719764832156,6.64272096,3397.4,3397.3,0.06]
[1719764832356,6.6427972,3397.4,3397.3,0.06]
[1719764834261,3.3526972,3397.4,3397.3,0.06]
[1719764834455,3.849,3397.4,3397.3,0.06]
[1719764835004,4.20167848,3397.4,3397.3,0.06]
[1719764835172,3.849,3397.4,3397.3,0.06]
[1719764835370,7.32,3397.6,3397.3,0.06]
[1719764835371,3.0,3397.5,3397.3,0.06]
[1719764835573,3.0,3397.4,3397.3,0.06]
[1719764835980,7.32,3397.6,3397.3,0.06]
[1719764835981,3.0,3397.5,3397.3,0.38286937]
[1719764836158,3.0,3397.5,3397.3,0.06]
[1719764836360,3.0,3397.5,3397.4,0.322857]
[1719764841112,0.849,3397.6,3397.4,0.322857]
[1719764841309,0.849,3397.6,3397.3,0.06]
[1719764841821,0.849,3397.6,3397.4,0.322857]
[1719764841976,0.849,3397.6,3397.3,0.06]
[1719764842176,0.849,3397.6,3397.4,0.322857]
[1719764842677,0.849,3397.6,3397.3,0.06]
[1719764843076,0.849,3397.6,3397.4,0.322857]
[1719764843410,0.849,3397.6,3397.3,0.06]
[1719764843621,0.849,3397.6,3397.4,0.322857]
[1719764843825,0.849,3397.6,3397.3,0.06]
[1719764844178,0.849,3397.6,3397.4,0.322857]
[1719764844613,0.849,3397.6,3397.3,0.06]
[1719764844912,0.849,3397.6,3397.4,0.322857]
[1719764845424,0.849,3397.6,3397.3,0.06]
[1719764845825,0.849,3397.6,3397.4,0.322857]
[1719764846211,0.849,3397.6,3397.3,0.06]
[1719764846518,0.849,3397.6,3397.4,0.322857]
[1719764847022,0.849,3397.6,3397.3,0.06]
[1719764847924,0.849,3397.6,3397.4,0.322857]
[1719764848429,0.849,3397.6,3397.3,0.06]
[1719764848924,0.849,3397.6,3397.4,0.322857]
[1719764849415,0.849,3397.6,3397.3,0.06]
[1719764849712,0.849,3397.6,3397.4,0.322857]
[1719764850082,0.849,3397.6,3397.3,0.06]
[1719764850522,0.849,3397.6,3397.4,0.32280427]
[1719764850879,0.849,3397.6,3397.3,0.06]
[1719764851379,0.849,3397.6,3397.4,0.32280427]
[1719764851915,0.849,3397.6,3397.3,0.06]
[1719764852510,0.849,3397.6,3397.4,0.32280427]
[1719764852917,0.849,3397.6,3397.3,0.06]
[1719764853120,0.849,3397.4,3397.3,0.06]
[1719764853606,3.0,3397.5,3397.3,0.06]
[1719764853805,1.2018366,3397.4,3397.3,0.06]
[1719764854927,1.20186557,3397.4,3397.3,0.06]
[1719764855124,1.2018661,3397.4,3397.3,0.06]
[1719764858430,1.20187535,3397.4,3397.3,0.06]
[1719764858996,6.54817535,3397.4,3397.3,0.06]
[1719764859196,3.67745589,3397.4,3397.3,0.06]
[1719764859427,7.52645589,3397.4,3397.3,0.06]
[1719764862140,7.52651319,3397.4,3397.3,0.06]
[1719764864446,7.52644817,3397.4,3397.3,0.06]
[1719764864647,7.17358054,3397.4,3397.3,0.06]
[1719764864945,7.5264242,3397.4,3397.3,0.06]
[1719764868118,7.52620886,3397.4,3397.3,0.06]
[1719764869740,19.06070897,3397.4,3397.3,0.06]
[1719764870219,18.09179897,3397.4,3397.3,0.06]
[1719764871037,17.11233786,3397.4,3397.3,0.06]
[1719764871233,17.73814098,3397.4,3397.3,0.06]
[1719764871434,18.09078884,3397.4,3397.3,0.06]
[1719764871653,17.73814098,3397.4,3397.3,0.06]
[1719764871952,18.09079167,3397.4,3397.3,0.06]
[1719764873123,17.24179167,3397.4,3397.3,0.06]
[1719764873342,17.04873067,3397.4,3397.3,0.06]
[1719764873653,13.16315367,3397.4,3397.3,0.06]
[1719764874041,12.18468888,3397.4,3397.3,0.06]
[1719764876058,11.33568888,3397.4,3397.3,0.06]
[1719764876257,12.18468888,3397.4,3397.3,0.06]
[1719764876766,7.52619788,3397.4,3397.3,0.06]
[1719764877319,31.72202388,3397.4,3397.3,0.06]
[1719764877551,22.35789688,3397.4,3397.3,0.06]
[1719764877749,22.00527954,3397.4,3397.3,0.06]
[1719764877953,24.89046685,3397.4,3397.3,0.06]
[1719764878159,23.65661585,3397.4,3397.3,0.06]
[1719764878665,22.70207585,3397.4,3397.3,0.06]
[1719764879235,21.85307585,3397.4,3397.3,0.06]
[1719764879430,22.70207585,3397.4,3397.3,0.06]
[1719764879743,21.26848685,3397.4,3397.3,0.06]
[1719764880333,19.98677585,3397.4,3397.3,0.06]
[1719764880529,14.55841763,3397.4,3397.3,0.06]
[1719764880735,11.60602041,3397.4,3397.3,0.06]
[1719764881049,10.62777763,3397.4,3397.3,0.06]
[1719764881397,10.62771233,3397.4,3397.3,0.06]
[1719764883279,10.27528854,3397.4,3397.3,0.06]
[1719764883451,10.62787615,3397.4,3397.3,0.06]
[1719764885165,10.62787615,3397.4,3397.3,0.01082968]
[1719764886780,10.62791214,3397.4,3397.3,0.01082968]
[1719764887889,10.62795544,3397.4,3397.3,0.01082968]
[1719764889763,10.62795544,3397.4,3396.9,0.2101183]
[1719764889764,10.27528854,3397.4,3396.9,0.2101183]
[1719764889974,0.849,3397.0,3396.9,0.2101183]
[1719764890255,1.20165884,3397.0,3396.9,0.53239126]
[1719764890477,1.20165884,3397.0,3396.9,0.2101183]
[1719764890478,0.35265884,3397.0,3396.9,0.2101183]
[1719764890687,0.849,3397.0,3396.9,0.2101183]
[1719764891291,1.20165884,3397.0,3396.9,0.2101183]
[1719764891610,3.59753666,3397.0,3396.9,0.2101183]
[1719764891889,6.35951366,3397.0,3396.9,0.2101183]
[1719764892090,3.50602266,3397.0,3396.9,0.2101183]
[1719764892290,1.35502266,3397.0,3396.9,0.2101183]
[1719764893088,1.00236382,3397.0,3396.9,0.2101183]
[1719764893296,1.35513271,3397.0,3396.9,0.2101183]
[1719764893597,1.00236382,3397.0,3396.9,0.2101183]
[1719764893760,1.35511441,3397.0,3396.9,0.2101183]
[1719764895399,0.50611441,3397.0,3396.9,0.2101183]
[1719764895687,1.00236382,3397.0,3396.9,0.2101183]
[1719764896049,1.35507306,3397.0,3396.9,0.2101183]
[1719764896694,0.35272304,3397.0,3396.9,0.2101183]
[1719764897549,3.35272304,3397.0,3396.9,0.2101183]
[1719764897783,0.35272304,3397.0,3396.9,0.2101183]
[1719764899568,0.849,3397.1,3396.9,0.2101183]
[1719764899779,1.20172484,3397.0,3396.9,0.2101183]
[1719764902923,0.849,3397.0,3396.9,0.2101183]
[1719764903063,1.20162911,3397.0,3396.9,0.2101183]
[1719764903517,1.20175887,3397.0,3396.9,0.2101183]
[1719764906063,1.20173624,3397.0,3396.9,0.2101183]
[1719764906259,2.10895742,3397.0,3396.9,0.2101183]
[1719764909408,2.1088876,3397.0,3396.9,0.2101183]
[1719764912474,1.75622118,3397.0,3396.9,0.2101183]
[1719764912698,2.10886658,3397.0,3396.9,0.2101183]
[1719764915802,2.10887592,3397.0,3396.9,0.2101183]
[1719764916230,2.10885777,3397.0,3396.9,0.2101183]
[1719764919150,2.10880354,3397.0,3396.9,0.2101183]
[1719764920162,2.10884297,3397.0,3396.9,0.2101183]
[1719764921160,1.75622118,3397.0,3396.9,0.2101183]
[1719764921466,2.10883947,3397.0,3396.9,0.2101183]
[1719764922337,1.75622118,3397.0,3396.9,0.2101183]
[1719764922510,2.10884422,3397.0,3396.9,0.2101183]
[1719764925419,1.75622118,3397.0,3396.9,0.2101183]
[1719764925622,2.10886676,3397.0,3396.9,0.2101183]
[1719764925851,1.75622118,3397.0,3396.9,0.2101183]
[1719764926155,1.20163251,3397.0,3396.9,0.2101183]
[1719764928722,1.20165808,3397.0,3396.9,0.2101183]
[1719764932173,0.35265808,3397.0,3396.9,0.2101183]
[1719764932467,0.849,3397.0,3396.9,0.2101183]
[1719764932648,1.20165808,3397.0,3396.9,0.2101183]
[1719764935401,1.20156403,3397.0,3396.9,0.2101183]
[1719764935688,0.35256403,3397.0,3396.9,0.2101183]
[1719764938705,0.35255971,3397.0,3396.9,0.2101183]
[1719764941081,0.849,3397.1,3396.9,0.2101183]
[1719764941291,0.35257545,3397.0,3396.9,0.2101183]
[1719764941466,5.53271037,3397.3,3396.9,0.2101183]
[1719764941467,0.35257545,3397.2,3396.9,0.2101183]
[1719764941668,1.20157545,3397.2,3396.9,0.2101183]
[1719764941860,0.35257545,3397.1,3396.9,0.2101183]
[1719764942415,0.57562154,3397.0,3396.9,0.2101183]
[1719764942710,0.92819699,3397.0,3396.9,0.2101183]
[1719764944100,1.77719699,3397.0,3396.9,0.2101183]
[1719764944253,1.77737015,3397.0,3396.9,0.2101183]
[1719764944655,1.77731957,3397.0,3396.9,0.2101183]
[1719764947210,1.77735387,3397.0,3396.9,0.2101183]
[1719764947359,1.42462154,3397.0,3396.9,0.2101183]
[1719764947561,1.77736181,3397.0,3396.9,0.2101183]
[1719764950718,1.77739047,3397.0,3396.9,0.2101183]
[1719764950864,0.92839047,3397.0,3396.9,0.2101183]
[1719764951065,1.77739047,3397.0,3396.9,0.2101183]
[1719764952063,0.92839047,3397.0,3396.9,0.2101183]
[1719764952265,0.35276893,3397.0,3396.9,0.2101183]
[1719764953763,0.849,3397.1,3396.9,0.2101183]
[1719764953962,0.35256436,3397.0,3396.9,0.2101183]
[1719764954406,0.849,3397.1,3396.9,0.2101183]
[1719764954612,0.35256335,3397.0,3396.9,0.2101183]
[1719764956066,5.53265898,3397.3,3397.0,2.4626]
[1719764956067,0.35256335,3397.2,3397.0,2.4626]
[1719764956563,0.35231777,3397.2,3397.1,0.32232013]
[1719764957418,0.35234751,3397.2,3397.1,0.32232013]
[1719764959179,3.0,3397.3,3397.1,0.32232013]
[1719764959371,3.0,3397.3,3397.0,2.4626]
[1719764959791,0.35231583,3397.2,3397.0,2.4626]
[1719764960019,0.35231583,3397.2,3397.1,0.32232013]
[1719764960201,3.849,3397.6,3397.0,2.4626]
[1719764960397,0.35230679,3397.5,3397.0,2.4626]
[1719764960598,0.35230621,3397.5,3397.0,2.4626]
[1719764963124,1.20130621,3397.5,3397.0,2.4626]
[1719764963322,0.35230621,3397.4,3397.0,2.72987183]
[1719764963836,0.849,3397.5,3397.0,2.72987183]
[1719764963984,0.35230264,3397.4,3397.0,2.72987183]
[1719764964189,0.849,3397.5,3397.0,2.72987183]
[1719764964490,0.35228401,3397.4,3397.0,2.72987183]
[1719764965305,0.35228401,3397.4,3397.1,0.29399901]
[1719764965649,3.0,3397.6,3397.1,0.29399901]
[1719764965650,0.35219605,3397.5,3397.1,0.29399901]
[1719764966100,0.35219605,3397.5,3397.0,2.4626]
[1719764966299,0.849,3397.2,3396.9,0.2101183]
[1719764966713,5.464,3397.6,3396.9,0.2101183]
[1719764966951,0.849,3397.2,3396.9,0.2101183]
[1719764969245,0.35239829,3397.1,3396.9,0.2101183]
[1719764970361,0.35239829,3397.3,3396.9,0.2101183]
[1719764970513,0.35240264,3397.3,3397.0,0.32226221]
[1719764970851,0.35240264,3397.3,3396.9,0.2101183]
[1719764971655,1.11674994,3397.3,3396.9,0.2101183]
[1719764971954,0.35240264,3397.2,3396.9,0.2101183]
[1719764972605,3.35240264,3397.2,3396.9,0.2101183]
[1719764972758,0.35240264,3397.1,3396.9,0.2101183]
[1719764973609,0.35247596,3397.1,3396.9,0.2101183]
[1719764973977,3.0,3397.2,3396.9,0.2101183]
[1719764974266,0.35246269,3397.1,3397.0,0.32230057]
[1719764974500,0.35246269,3397.1,3396.9,0.2101183]
[1719764975259,0.35246269,3397.1,3397.0,0.32230057]
[1719764975562,0.35246269,3397.1,3396.9,0.2101183]
[1719764975766,0.35246269,3397.1,3397.0,0.32230057]
[1719764976170,0.35246269,3397.1,3396.9,0.2101183]
[1719764976397,0.35245596,3397.1,3397.0,0.32230057]
[1719764976760,0.35245603,3397.1,3396.9,0.2101183]
[1719764976958,0.35245603,3397.1,3397.0,0.32230057]
[1719764977381,0.35245603,3397.1,3396.9,0.2101183]
[1719764977589,0.35245603,3397.1,3397.0,0.32230057]
[1719764977902,0.35245603,3397.1,3396.9,0.2101183]
[1719764978108,0.35245603,3397.1,3397.0,0.32230057]
[1719764978289,0.35245603,3397.1,3396.9,0.2101183]
[1719764978461,0.35245603,3397.1,3397.0,0.32230057]
[1719764978657,0.35245603,3397.1,3396.9,0.2101183]
[1719764978893,0.35245603,3397.1,3397.0,0.32230057]
[1719764979075,0.35245603,3397.1,3396.9,0.2101183]
[1719764979284,0.35245603,3397.1,3397.0,0.32230057]
[1719764979598,0.35245603,3397.1,3396.9,0.2101183]
[1719764979798,0.35245603,3397.1,3397.0,0.32230057]
[1719764979998,0.6536256,3397.1,3397.0,0.32230057]
[1719764980212,0.6536256,3397.1,3396.9,0.2101183]
[1719764980213,1.00610844,3397.1,3396.9,0.2101183]
[1719764980508,1.20148284,3397.0,3396.9,0.2101183]
[1719764982108,0.849,3397.0,3396.9,0.2101183]
[1719764982312,1.85826071,3397.0,3396.9,0.2101183]
[1719764982498,1.3618861,3397.0,3396.9,0.2101183]
[1719764983411,1.00926071,3397.0,3396.9,0.2101183]
[1719764983571,1.36177527,3397.0,3396.9,0.2101183]
[1719764983903,1.00926071,3397.0,3396.9,0.2101183]
[1719764984119,1.36178908,3397.0,3396.9,0.2101183]
[1719764986166,1.00926071,3397.0,3396.9,0.2101183]
[1719764986403,1.36176233,3397.0,3396.9,0.2101183]